[Event "*** Titled Tuesday Blitz"]
[Site "Chess.com"]
[Date "2020.05.26"]
[Round "2"]
[White "Moon_stone123"]
[Black "VincentKeymer"]
[Result "0-1"]
[WhiteElo "2522"]
[BlackElo "2821"]
[TimeControl "180+1"]
[EndTime "10:17:26 PDT"]
[Termination "VincentKeymer won by checkmate"]

1. Nf3 {[%clk 0:03:00.9]} 1... d5 {[%clk 0:02:57.7]} 2. g3 {[%clk 0:03:00.8]}
2... c6 {[%clk 0:02:57.7]} 3. Bg2 {[%clk 0:03:01.1]} 3... Bg4 {[%clk 0:02:57.3]}
4. O-O {[%clk 0:03:00.9]} 4... Nd7 {[%clk 0:02:57.2]} 5. d3 {[%clk 0:02:58.1]}
5... Ngf6 {[%clk 0:02:54]} 6. c4 {[%clk 0:02:57.6]} 6... dxc4 {[%clk 0:02:46.5]}
7. dxc4 {[%clk 0:02:58.5]} 7... h6 {[%clk 0:02:43.7]} 8. Nc3 {[%clk 0:02:55.7]}
8... e6 {[%clk 0:02:43.1]} 9. b3 {[%clk 0:02:44.8]} 9... Qc7 {[%clk 0:02:36.8]}
10. Bb2 {[%clk 0:02:40.6]} 10... Bc5 {[%clk 0:02:35.5]} 11. Qc2 {[%clk 0:02:38]}
11... O-O {[%clk 0:02:26.9]} 12. Rad1 {[%clk 0:02:35.5]} 12... Bf5 {[%clk
0:02:24.6]} 13. e4 {[%clk 0:02:23.8]} 13... Bh7 {[%clk 0:02:22.4]} 14. Qe2
{[%clk 0:02:23.8]} 14... e5 {[%clk 0:02:16.7]} 15. Ne1 {[%clk 0:02:00.6]} 15...
Bd4 {[%clk 0:01:57.6]} 16. Nc2 {[%clk 0:01:43.2]} 16... c5 {[%clk 0:01:57.2]}
17. Nb5 {[%clk 0:01:22.6]} 17... Qa5 {[%clk 0:01:42.3]} 18. Nbxd4 {[%clk
0:01:21.7]} 18... exd4 {[%clk 0:01:40]} 19. a3 {[%clk 0:01:14.5]} 19... Rfe8
{[%clk 0:01:34.7]} 20. f3 {[%clk 0:01:09.9]} 20... Qc7 {[%clk 0:01:30.9]} 21.
Ne1 {[%clk 0:01:02.8]} 21... Ne5 {[%clk 0:01:28.9]} 22. Bc1 {[%clk 0:00:59.6]}
22... Rad8 {[%clk 0:01:17.3]} 23. Bf4 {[%clk 0:00:58.4]} 23... Nfd7 {[%clk
0:01:13.8]} 24. Bh3 {[%clk 0:00:53.5]} 24... Qa5 {[%clk 0:01:11.7]} 25. Qb2
{[%clk 0:00:46.2]} 25... Qb6 {[%clk 0:00:59.8]} 26. Bxd7 {[%clk 0:00:45.7]}
26... Nxd7 {[%clk 0:00:59.5]} 27. Nd3 {[%clk 0:00:43.8]} 27... f5 {[%clk
0:00:59.4]} 28. e5 {[%clk 0:00:37.9]} 28... g5 {[%clk 0:00:59.3]} 29. Bd2 {[%clk
0:00:38.4]} 29... f4 {[%clk 0:00:54.7]} 30. Nf2 {[%clk 0:00:18.9]} 30... Nxe5
{[%clk 0:00:54]} 31. Ne4 {[%clk 0:00:12.7]} 31... g4 {[%clk 0:00:47.9]} 32. Bxf4
{[%clk 0:00:10.9]} 32... Nxf3+ {[%clk 0:00:47.9]} 33. Rxf3 {[%clk 0:00:10.2]}
33... gxf3 {[%clk 0:00:48.8]} 34. Nf2 {[%clk 0:00:07.6]} 34... Re2 {[%clk
0:00:48.1]} 35. Qc1 {[%clk 0:00:06.9]} 35... Qe6 {[%clk 0:00:48.1]} 36. Bxh6
{[%clk 0:00:05.9]} 36... Re8 {[%clk 0:00:43.8]} 37. Qg5+ {[%clk 0:00:05.6]}
37... Bg6 {[%clk 0:00:44.1]} 38. Ng4 {[%clk 0:00:04.1]} 38... Rg2+ {[%clk
0:00:41.9]} 39. Kh1 {[%clk 0:00:04.3]} 39... Qe1+ {[%clk 0:00:41.9]} 40. Rxe1
{[%clk 0:00:02.2]} 40... Rxe1# {[%clk 0:00:42.8]} 0-1

[Event "*** Titled Tuesday Blitz"]
[Site "Chess.com"]
[Date "2020.05.26"]
[Round "2"]
[White "Boudicca64"]
[Black "MaxLeto"]
[Result "1-0"]
[WhiteElo "1993"]
[BlackElo "2328"]
[TimeControl "180+1"]
[EndTime "10:17:26 PDT"]
[Termination "Boudicca64 won by resignation"]

1. e4 {[%clk 0:02:51.9]} 1... c5 {[%clk 0:02:59]} 2. g3 {[%clk 0:02:46.7]} 2...
Nc6 {[%clk 0:02:55.1]} 3. Bg2 {[%clk 0:02:44.8]} 3... g6 {[%clk 0:02:55.6]} 4.
Ne2 {[%clk 0:02:43.1]} 4... Bg7 {[%clk 0:02:55.9]} 5. O-O {[%clk 0:02:42.8]}
5... d6 {[%clk 0:02:53.5]} 6. h3 {[%clk 0:02:40.8]} 6... e5 {[%clk 0:02:45.4]}
7. c3 {[%clk 0:02:39.1]} 7... Nge7 {[%clk 0:02:45.2]} 8. d3 {[%clk 0:02:35.3]}
8... O-O {[%clk 0:02:45.1]} 9. Be3 {[%clk 0:02:33.7]} 9... Be6 {[%clk
0:02:28.7]} 10. d4 {[%clk 0:02:31.3]} 10... exd4 {[%clk 0:02:26.3]} 11. cxd4
{[%clk 0:02:28.5]} 11... Bc4 {[%clk 0:02:11.4]} 12. d5 {[%clk 0:02:07.7]} 12...
Bxb2 {[%clk 0:01:56.1]} 13. Nbc3 {[%clk 0:01:54.6]} 13... Bxa1 {[%clk 0:01:15]}
14. Qxa1 {[%clk 0:01:52.4]} 14... Nd4 {[%clk 0:00:56.5]} 15. Qd1 {[%clk
0:01:14.5]} 15... Nxe2+ {[%clk 0:00:48.7]} 16. Nxe2 {[%clk 0:01:12.8]} 16... Qa5
{[%clk 0:00:48.4]} 17. Re1 {[%clk 0:01:08]} 17... Bxe2 {[%clk 0:00:38.4]} 18.
Rxe2 {[%clk 0:00:55.5]} 18... f6 {[%clk 0:00:36.1]} 19. f4 {[%clk 0:00:48.5]}
19... b5 {[%clk 0:00:34.2]} 20. e5 {[%clk 0:00:45.8]} 20... fxe5 {[%clk
0:00:33.4]} 21. fxe5 {[%clk 0:00:44.5]} 21... dxe5 {[%clk 0:00:32.4]} 22. d6
{[%clk 0:00:42.4]} 22... Nf5 {[%clk 0:00:31.4]} 23. Bxa8 {[%clk 0:00:37.6]}
23... Nxg3 {[%clk 0:00:20.2]} 24. Qd5+ {[%clk 0:00:31.7]} 24... Kg7 {[%clk
0:00:19.2]} 25. Qxe5+ {[%clk 0:00:18.1]} 25... Kg8 {[%clk 0:00:10.2]} 26. Bd5+
{[%clk 0:00:15.3]} 26... Rf7 {[%clk 0:00:04.4]} 27. Qe8+ {[%clk 0:00:12]} 27...
Kg7 {[%clk 0:00:03.6]} 28. Qxf7+ {[%clk 0:00:10.8]} 1-0

[Event "*** Titled Tuesday Blitz"]
[Site "Chess.com"]
[Date "2020.05.26"]
[Round "2"]
[White "Savva09022009"]
[Black "Shushik"]
[Result "1-0"]
[WhiteElo "2401"]
[BlackElo "2115"]
[TimeControl "180+1"]
[EndTime "10:17:27 PDT"]
[Termination "Savva09022009 won on time"]

1. d4 {[%clk 0:02:58.5]} 1... d5 {[%clk 0:03:00.2]} 2. Nc3 {[%clk 0:02:59.4]}
2... Nf6 {[%clk 0:02:59.9]} 3. Bf4 {[%clk 0:02:58.6]} 3... c5 {[%clk 0:02:58.9]}
4. e3 {[%clk 0:02:58.3]} 4... Bf5 {[%clk 0:02:56]} 5. f3 {[%clk 0:02:56.5]} 5...
Nc6 {[%clk 0:02:54.1]} 6. g4 {[%clk 0:02:55.5]} 6... Bg6 {[%clk 0:02:49.5]} 7.
h4 {[%clk 0:02:55.8]} 7... h6 {[%clk 0:02:47.7]} 8. Bd3 {[%clk 0:02:50.6]} 8...
Bxd3 {[%clk 0:02:46.7]} 9. Qxd3 {[%clk 0:02:51.5]} 9... e6 {[%clk 0:02:44.7]}
10. Nge2 {[%clk 0:02:49.2]} 10... c4 {[%clk 0:02:37.8]} 11. Qd2 {[%clk
0:02:48.6]} 11... Bd6 {[%clk 0:02:37.1]} 12. O-O-O {[%clk 0:02:47.5]} 12... Bxf4
{[%clk 0:02:32.7]} 13. Nxf4 {[%clk 0:02:48.4]} 13... Qd7 {[%clk 0:02:31.1]} 14.
g5 {[%clk 0:02:48.6]} 14... Nh7 {[%clk 0:02:16.7]} 15. e4 {[%clk 0:02:31.1]}
15... dxe4 {[%clk 0:02:07.2]} 16. fxe4 {[%clk 0:02:27.6]} 16... O-O-O {[%clk
0:02:02.9]} 17. d5 {[%clk 0:02:26.9]} 17... exd5 {[%clk 0:01:40]} 18. exd5
{[%clk 0:02:27.8]} 18... Ne5 {[%clk 0:01:23.6]} 19. Qd4 {[%clk 0:02:20.6]} 19...
Rhe8 {[%clk 0:01:16.6]} 20. Qxa7 {[%clk 0:02:13.7]} 20... hxg5 {[%clk
0:00:50.2]} 21. d6 {[%clk 0:02:06.8]} 21... Qc6 {[%clk 0:00:42.8]} 22. hxg5
{[%clk 0:01:39.8]} 22... Nxg5 {[%clk 0:00:41.8]} 23. d7+ {[%clk 0:01:28.6]}
23... Nxd7 {[%clk 0:00:36.4]} 24. Nfd5 {[%clk 0:01:18.9]} 24... Ne4 {[%clk
0:00:24.7]} 25. Nxe4 {[%clk 0:01:14.8]} 25... Rxe4 {[%clk 0:00:24.2]} 26. Rh4
{[%clk 0:01:02.8]} 26... Re6 {[%clk 0:00:19.5]} 27. Rhd4 {[%clk 0:00:52.3]}
27... Rh8 {[%clk 0:00:08.9]} 28. Qa8+ {[%clk 0:00:43.6]} 28... Nb8 {[%clk
0:00:08.6]} 29. Qa7 {[%clk 0:00:41]} 29... Nd7 {[%clk 0:00:07.5]} 30. b3 {[%clk
0:00:39.9]} 30... cxb3 {[%clk 0:00:06.7]} 31. axb3 {[%clk 0:00:40.8]} 31... Nc5
{[%clk 0:00:02.2]} 32. Rc4 {[%clk 0:00:39.9]} 32... Kd7 {[%clk 0:00:01.7]} 33.
Rxc5 {[%clk 0:00:38.6]} 33... Qxc5 {[%clk 0:00:01.8]} 34. Qxc5 {[%clk
0:00:37.9]} 34... Rd6 {[%clk 0:00:01.9]} 35. Qc7+ {[%clk 0:00:37.6]} 35... Ke6
{[%clk 0:00:01.7]} 36. Re1+ {[%clk 0:00:38.1]} 36... Kxd5 {[%clk 0:00:01.2]} 37.
Rd1+ {[%clk 0:00:38.3]} 37... Ke4 {[%clk 0:00:01.7]} 38. Qxd6 {[%clk 0:00:39.2]}
1-0

[Event "*** Titled Tuesday Blitz"]
[Site "Chess.com"]
[Date "2020.05.26"]
[Round "2"]
[White "bazar-wokzal"]
[Black "lucliasco"]
[Result "0-1"]
[WhiteElo "2458"]
[BlackElo "2686"]
[TimeControl "180+1"]
[EndTime "10:17:28 PDT"]
[Termination "lucliasco won on time"]

1. e4 {[%clk 0:03:00.9]} 1... e5 {[%clk 0:02:59.1]} 2. Bc4 {[%clk 0:03:00.2]}
2... Nc6 {[%clk 0:02:58.9]} 3. f4 {[%clk 0:02:58.5]} 3... Nf6 {[%clk 0:02:50.6]}
4. Nc3 {[%clk 0:02:57.5]} 4... Bc5 {[%clk 0:02:50.8]} 5. Nf3 {[%clk 0:02:56.5]}
5... d6 {[%clk 0:02:48.7]} 6. f5 {[%clk 0:02:48.8]} 6... O-O {[%clk 0:02:42.6]}
7. d3 {[%clk 0:02:47.6]} 7... Na5 {[%clk 0:02:43.3]} 8. Bg5 {[%clk 0:02:46.5]}
8... Nxc4 {[%clk 0:02:39.9]} 9. dxc4 {[%clk 0:02:45.7]} 9... Bb4 {[%clk
0:02:40.5]} 10. Nd2 {[%clk 0:02:33.8]} 10... Bxc3 {[%clk 0:02:37.3]} 11. bxc3
{[%clk 0:02:33.8]} 11... h6 {[%clk 0:02:34]} 12. Bh4 {[%clk 0:02:32.4]} 12...
Bd7 {[%clk 0:02:34.3]} 13. Qf3 {[%clk 0:02:26]} 13... g5 {[%clk 0:01:58.5]} 14.
Bf2 {[%clk 0:02:20.2]} 14... Kg7 {[%clk 0:01:49]} 15. g4 {[%clk 0:02:18]} 15...
Rg8 {[%clk 0:01:41.6]} 16. h4 {[%clk 0:02:18]} 16... Bc6 {[%clk 0:01:38.6]} 17.
hxg5 {[%clk 0:02:15.4]} 17... hxg5 {[%clk 0:01:34.7]} 18. Be3 {[%clk 0:02:13.4]}
18... Kf8 {[%clk 0:01:22.3]} 19. Kf2 {[%clk 0:02:05.7]} 19... Ke7 {[%clk
0:01:09]} 20. Rh6 {[%clk 0:02:03]} 20... Qf8 {[%clk 0:01:03.8]} 21. Rah1 {[%clk
0:02:01.3]} 21... b6 {[%clk 0:01:04.5]} 22. Qg2 {[%clk 0:01:24.9]} 22... Rd8
{[%clk 0:00:51.6]} 23. Kg3 {[%clk 0:01:14.5]} 23... Qg7 {[%clk 0:00:48.6]} 24.
R1h3 {[%clk 0:00:53.9]} 24... Kd7 {[%clk 0:00:48.4]} 25. Qh1 {[%clk 0:00:42]}
25... Kc8 {[%clk 0:00:48.5]} 26. Kf3 {[%clk 0:00:40.2]} 26... Kb7 {[%clk
0:00:48.2]} 27. Rh2 {[%clk 0:00:31.6]} 27... Qf8 {[%clk 0:00:45.6]} 28. R2h3
{[%clk 0:00:31]} 28... Qe7 {[%clk 0:00:45.8]} 29. Rh2 {[%clk 0:00:30.9]} 29...
d5 {[%clk 0:00:43.6]} 30. cxd5 {[%clk 0:00:29.8]} 30... Rxd5 {[%clk 0:00:44]}
31. Rxf6 {[%clk 0:00:26.2]} 31... Qxf6 {[%clk 0:00:41.8]} 32. Rh6 {[%clk
0:00:19.7]} 32... Qd8 {[%clk 0:00:36.6]} 33. Rxc6 {[%clk 0:00:19.3]} 33... Rxd2
{[%clk 0:00:33.9]} 34. Rh6 {[%clk 0:00:05.8]} 34... Rxc2 {[%clk 0:00:33.5]} 35.
Qf1 {[%clk 0:00:01.5]} 35... Rh8 {[%clk 0:00:33.4]} 0-1

[Event "*** Titled Tuesday Blitz"]
[Site "Chess.com"]
[Date "2020.05.26"]
[Round "2"]
[White "Arek_pacitan"]
[Black "Dmitry_Konenkin"]
[Result "1-0"]
[WhiteElo "2552"]
[BlackElo "2274"]
[TimeControl "180+1"]
[EndTime "10:17:28 PDT"]
[Termination "Arek_pacitan won on time"]

1. e4 {[%clk 0:03:00.9]} 1... d6 {[%clk 0:02:58.8]} 2. d4 {[%clk 0:03:00.1]}
2... Nf6 {[%clk 0:02:59.4]} 3. Nc3 {[%clk 0:02:58.8]} 3... e5 {[%clk 0:02:59.4]}
4. Nf3 {[%clk 0:02:55.9]} 4... Nbd7 {[%clk 0:02:59]} 5. Bc4 {[%clk 0:02:54.1]}
5... Be7 {[%clk 0:02:59.4]} 6. O-O {[%clk 0:02:52.3]} 6... O-O {[%clk
0:02:59.9]} 7. a4 {[%clk 0:02:52]} 7... c6 {[%clk 0:03:00.3]} 8. h3 {[%clk
0:02:50.4]} 8... b6 {[%clk 0:03:00.1]} 9. Bb3 {[%clk 0:02:45.1]} 9... a6 {[%clk
0:02:59.2]} 10. Be3 {[%clk 0:02:44.5]} 10... Qc7 {[%clk 0:02:58.3]} 11. Qe2
{[%clk 0:02:36.8]} 11... Bb7 {[%clk 0:02:57.2]} 12. Rfd1 {[%clk 0:02:36.7]}
12... b5 {[%clk 0:02:56.1]} 13. dxe5 {[%clk 0:02:36.2]} 13... dxe5 {[%clk
0:02:36.9]} 14. axb5 {[%clk 0:02:33.7]} 14... axb5 {[%clk 0:02:31.1]} 15. Rxa8
{[%clk 0:02:34.2]} 15... Bxa8 {[%clk 0:02:30.1]} 16. Nd2 {[%clk 0:02:25.3]}
16... Nc5 {[%clk 0:02:11.4]} 17. Bxc5 {[%clk 0:02:22.3]} 17... Bxc5 {[%clk
0:02:10.9]} 18. Nf1 {[%clk 0:02:21.1]} 18... Bd4 {[%clk 0:02:04.3]} 19. Ng3
{[%clk 0:02:19.5]} 19... g6 {[%clk 0:01:48.5]} 20. Qf3 {[%clk 0:02:16.7]} 20...
Kg7 {[%clk 0:01:33.6]} 21. Nce2 {[%clk 0:01:55]} 21... Bxb2 {[%clk 0:01:13.5]}
22. c3 {[%clk 0:01:52.5]} 22... Ba3 {[%clk 0:01:10.7]} 23. Qe3 {[%clk
0:01:45.5]} 23... h6 {[%clk 0:01:01.7]} 24. h4 {[%clk 0:01:43.1]} 24... Be7
{[%clk 0:00:47.1]} 25. h5 {[%clk 0:01:41.7]} 25... Rd8 {[%clk 0:00:43.6]} 26.
Ra1 {[%clk 0:01:38.9]} 26... c5 {[%clk 0:00:35.5]} 27. c4 {[%clk 0:01:26.1]}
27... b4 {[%clk 0:00:31.8]} 28. Rf1 {[%clk 0:01:08.9]} 28... Qd6 {[%clk
0:00:29.3]} 29. f4 {[%clk 0:01:06]} 29... Qd3 {[%clk 0:00:25.5]} 30. Qf2 {[%clk
0:00:58.1]} 30... Ng4 {[%clk 0:00:19.1]} 31. Qf3 {[%clk 0:00:54.5]} 31... Qxf3
{[%clk 0:00:17.3]} 32. gxf3 {[%clk 0:00:55.4]} 32... Ne3 {[%clk 0:00:17.4]} 33.
Ra1 {[%clk 0:00:53.3]} 33... Bc6 {[%clk 0:00:13.6]} 34. hxg6 {[%clk 0:00:51.4]}
34... fxg6 {[%clk 0:00:13.6]} 35. f5 {[%clk 0:00:51.9]} 35... Bg5 {[%clk
0:00:12.9]} 36. Ra7+ {[%clk 0:00:51.2]} 36... Rd7 {[%clk 0:00:12.1]} 37. Ra6
{[%clk 0:00:51.4]} 37... Rc7 {[%clk 0:00:09.6]} 38. fxg6 {[%clk 0:00:49.6]}
38... Bf4 {[%clk 0:00:06.6]} 39. Ba4 {[%clk 0:00:48.2]} 39... Bxa4 {[%clk
0:00:05.5]} 40. Nh5+ {[%clk 0:00:48.7]} 40... Kf8 {[%clk 0:00:04.8]} 41. Ra8+
{[%clk 0:00:46.5]} 41... Be8 {[%clk 0:00:02.3]} 42. Nexf4 {[%clk 0:00:46.8]} 1-0

[Event "*** Titled Tuesday Blitz"]
[Site "Chess.com"]
[Date "2020.05.26"]
[Round "2"]
[White "pedro_nascimento85"]
[Black "ljuks68"]
[Result "0-1"]
[WhiteElo "1861"]
[BlackElo "2326"]
[TimeControl "180+1"]
[EndTime "10:17:28 PDT"]
[Termination "ljuks68 won by resignation"]

1. d4 {[%clk 0:03:00.9]} 1... d5 {[%clk 0:02:59.6]} 2. c4 {[%clk 0:03:00.6]}
2... c6 {[%clk 0:02:59.3]} 3. cxd5 {[%clk 0:03:00.4]} 3... cxd5 {[%clk
0:02:58.6]} 4. Nc3 {[%clk 0:03:01]} 4... Nf6 {[%clk 0:02:59.1]} 5. Bf4 {[%clk
0:02:59.8]} 5... Nc6 {[%clk 0:02:59.5]} 6. e3 {[%clk 0:02:59.2]} 6... Bf5 {[%clk
0:02:59.5]} 7. Qb3 {[%clk 0:02:52.1]} 7... Na5 {[%clk 0:02:59.2]} 8. Qa4+ {[%clk
0:02:50]} 8... Bd7 {[%clk 0:02:57.2]} 9. Qc2 {[%clk 0:02:48.4]} 9... e6 {[%clk
0:02:55.2]} 10. Bd3 {[%clk 0:02:42]} 10... Nh5 {[%clk 0:02:36.1]} 11. Bg3 {[%clk
0:02:40.4]} 11... Nxg3 {[%clk 0:02:27.2]} 12. hxg3 {[%clk 0:02:41.3]} 12... h6
{[%clk 0:02:27.6]} 13. Nf3 {[%clk 0:02:40.4]} 13... Nc6 {[%clk 0:02:26.8]} 14.
a3 {[%clk 0:02:39.3]} 14... Bd6 {[%clk 0:02:25.6]} 15. O-O {[%clk 0:02:37.9]}
15... Rc8 {[%clk 0:02:24.9]} 16. Rac1 {[%clk 0:02:36.2]} 16... O-O {[%clk
0:02:24.2]} 17. Qe2 {[%clk 0:02:35.6]} 17... Na5 {[%clk 0:02:18.1]} 18. b4
{[%clk 0:02:26.8]} 18... Nc4 {[%clk 0:02:17.5]} 19. Bxc4 {[%clk 0:02:21.3]}
19... Rxc4 {[%clk 0:02:16.3]} 20. Ne5 {[%clk 0:02:17.1]} 20... Bxe5 {[%clk
0:02:14.7]} 21. dxe5 {[%clk 0:02:18]} 21... Qc7 {[%clk 0:02:12.4]} 22. Na2
{[%clk 0:02:16.9]} 22... Rxc1 {[%clk 0:02:08.1]} 23. Rxc1 {[%clk 0:02:15.9]}
23... Qxe5 {[%clk 0:02:08.4]} 24. Qd2 {[%clk 0:02:04.9]} 24... Rc8 {[%clk
0:02:01.8]} 25. Rxc8+ {[%clk 0:02:01.7]} 25... Bxc8 {[%clk 0:02:01.6]} 26. Nc3
{[%clk 0:02:00.9]} 26... Bd7 {[%clk 0:01:57.3]} 27. Qd4 {[%clk 0:02:00.5]} 27...
Qb8 {[%clk 0:01:42.7]} 28. Kf1 {[%clk 0:01:56.1]} 28... b6 {[%clk 0:01:42.5]}
29. Ke1 {[%clk 0:01:52.2]} 29... Bc6 {[%clk 0:01:33.8]} 30. Kd2 {[%clk
0:01:41.2]} 30... Qd6 {[%clk 0:01:23.4]} 31. Qf4 {[%clk 0:01:28.1]} 31... e5
{[%clk 0:01:20.9]} 32. Qg4 {[%clk 0:01:23.2]} 32... g6 {[%clk 0:01:11.8]} 33.
Ne2 {[%clk 0:01:16.5]} 33... a5 {[%clk 0:01:01]} 34. Qc8+ {[%clk 0:01:10.4]}
34... Kg7 {[%clk 0:00:59.7]} 35. bxa5 {[%clk 0:00:57]} 35... bxa5 {[%clk
0:00:59.4]} 36. Qa6 {[%clk 0:00:54.8]} 36... Qc5 {[%clk 0:00:54.6]} 37. Nc3
{[%clk 0:00:46.1]} 37... d4 {[%clk 0:00:52.3]} 38. exd4 {[%clk 0:00:45.1]} 38...
exd4 {[%clk 0:00:51.9]} 39. Ne2 {[%clk 0:00:44]} 39... Be4 {[%clk 0:00:36.7]}
40. a4 {[%clk 0:00:36.2]} 40... Qc2+ {[%clk 0:00:32.7]} 41. Ke1 {[%clk
0:00:33.5]} 41... d3 {[%clk 0:00:31]} 0-1

[Event "*** Titled Tuesday Blitz"]
[Site "Chess.com"]
[Date "2020.05.26"]
[Round "2"]
[White "yobdc"]
[Black "TheoSlade"]
[Result "1-0"]
[WhiteElo "2036"]
[BlackElo "2345"]
[TimeControl "180+1"]
[EndTime "10:17:29 PDT"]
[Termination "yobdc won on time"]

1. e4 {[%clk 0:03:00.9]} 1... e5 {[%clk 0:03:00.5]} 2. Nf3 {[%clk 0:03:00.1]}
2... Nc6 {[%clk 0:03:01]} 3. Bc4 {[%clk 0:03:00.4]} 3... Bc5 {[%clk 0:03:00.8]}
4. d3 {[%clk 0:02:59.3]} 4... Nf6 {[%clk 0:03:01.1]} 5. O-O {[%clk 0:02:56.7]}
5... O-O {[%clk 0:03:01.5]} 6. Re1 {[%clk 0:02:54.5]} 6... Ng4 {[%clk
0:03:00.1]} 7. Re2 {[%clk 0:02:53.2]} 7... Kh8 {[%clk 0:02:59.7]} 8. h3 {[%clk
0:02:41.2]} 8... f5 {[%clk 0:02:59.3]} 9. Nc3 {[%clk 0:02:29.2]} 9... d6 {[%clk
0:02:13]} 10. Bg5 {[%clk 0:02:17.5]} 10... Nf6 {[%clk 0:02:12.3]} 11. Nd5 {[%clk
0:02:04]} 11... Be6 {[%clk 0:02:12.3]} 12. Nxf6 {[%clk 0:01:53.8]} 12... gxf6
{[%clk 0:02:07.9]} 13. Bxe6 {[%clk 0:01:52.6]} 13... fxg5 {[%clk 0:02:08]} 14.
exf5 {[%clk 0:01:47]} 14... Nd4 {[%clk 0:02:04.1]} 15. Nxd4 {[%clk 0:01:46.4]}
15... Bxd4 {[%clk 0:02:03.9]} 16. c3 {[%clk 0:01:46.6]} 16... Bb6 {[%clk
0:02:02.7]} 17. d4 {[%clk 0:01:43.5]} 17... exd4 {[%clk 0:01:57.1]} 18. cxd4
{[%clk 0:01:44.4]} 18... Qf6 {[%clk 0:01:54.8]} 19. Re4 {[%clk 0:01:41.3]} 19...
d5 {[%clk 0:01:43.9]} 20. Re5 {[%clk 0:01:38.3]} 20... c6 {[%clk 0:01:41.9]} 21.
Qd3 {[%clk 0:01:32.3]} 21... Bc7 {[%clk 0:01:42]} 22. Re2 {[%clk 0:01:29.2]}
22... Kg7 {[%clk 0:01:36.8]} 23. b4 {[%clk 0:01:25.2]} 23... Qe7 {[%clk
0:01:35.3]} 24. b5 {[%clk 0:01:22.3]} 24... Qd6 {[%clk 0:01:35.3]} 25. g3 {[%clk
0:01:22.4]} 25... Rf6 {[%clk 0:01:33.7]} 26. bxc6 {[%clk 0:01:21]} 26... bxc6
{[%clk 0:01:33.3]} 27. Rc1 {[%clk 0:01:17.3]} 27... Rb8 {[%clk 0:01:32.4]} 28.
Rec2 {[%clk 0:01:13.2]} 28... Rb6 {[%clk 0:01:31.1]} 29. Kg2 {[%clk 0:01:12.9]}
29... h5 {[%clk 0:01:30]} 30. Qe3 {[%clk 0:01:00.4]} 30... Kf8 {[%clk
0:01:00.9]} 31. Qxg5 {[%clk 0:00:58.4]} 31... Bd8 {[%clk 0:01:01.3]} 32. Qxh5
{[%clk 0:00:56.9]} 32... Kg7 {[%clk 0:00:52]} 33. Qg5+ {[%clk 0:00:52.1]} 33...
Kf8 {[%clk 0:00:46.9]} 34. Qg8+ {[%clk 0:00:52.2]} 34... Ke7 {[%clk 0:00:46.6]}
35. Qg7+ {[%clk 0:00:52.3]} 35... Ke8 {[%clk 0:00:46.3]} 36. Re1 {[%clk
0:00:47.9]} 36... Be7 {[%clk 0:00:43.6]} 37. Rce2 {[%clk 0:00:44.8]} 37... Kd8
{[%clk 0:00:39.5]} 38. Bc8 {[%clk 0:00:37.5]} 38... Kxc8 {[%clk 0:00:16]} 39.
Rxe7 {[%clk 0:00:37.5]} 39... Qd8 {[%clk 0:00:05.3]} 40. Qxf6 {[%clk 0:00:35.4]}
1-0

[Event "*** Titled Tuesday Blitz"]
[Site "Chess.com"]
[Date "2020.05.26"]
[Round "2"]
[White "GmSergioBarrientos"]
[Black "nihalsarin"]
[Result "0-1"]
[WhiteElo "2595"]
[BlackElo "3037"]
[TimeControl "180+1"]
[EndTime "10:17:31 PDT"]
[Termination "nihalsarin won by resignation"]

1. d4 {[%clk 0:03:00.9]} 1... Nf6 {[%clk 0:02:58.1]} 2. Nf3 {[%clk 0:03:00.5]}
2... g6 {[%clk 0:02:56.4]} 3. g3 {[%clk 0:03:00.1]} 3... Bg7 {[%clk 0:02:56.7]}
4. Bg2 {[%clk 0:03:01]} 4... O-O {[%clk 0:02:57]} 5. O-O {[%clk 0:03:01.5]} 5...
d6 {[%clk 0:02:57.6]} 6. a4 {[%clk 0:03:02]} 6... a5 {[%clk 0:02:49.8]} 7. Nc3
{[%clk 0:02:59.4]} 7... Nc6 {[%clk 0:02:49.2]} 8. e4 {[%clk 0:02:59.1]} 8... Bg4
{[%clk 0:02:43.8]} 9. Be3 {[%clk 0:02:52.7]} 9... Nd7 {[%clk 0:02:43]} 10. h3
{[%clk 0:02:48.5]} 10... Bxf3 {[%clk 0:02:43]} 11. Bxf3 {[%clk 0:02:49.4]} 11...
e5 {[%clk 0:02:43.4]} 12. d5 {[%clk 0:02:48.6]} 12... Nb4 {[%clk 0:02:38.1]} 13.
Bg2 {[%clk 0:02:32.2]} 13... f5 {[%clk 0:02:29.7]} 14. exf5 {[%clk 0:02:21.9]}
14... gxf5 {[%clk 0:02:29.1]} 15. Bd2 {[%clk 0:02:19.8]} 15... e4 {[%clk
0:02:26]} 16. Rb1 {[%clk 0:02:15.1]} 16... Qe7 {[%clk 0:02:16.6]} 17. Be3 {[%clk
0:02:07.1]} 17... Rae8 {[%clk 0:02:13.9]} 18. Nb5 {[%clk 0:02:02.3]} 18... Ne5
{[%clk 0:02:12.4]} 19. b3 {[%clk 0:01:56.3]} 19... Qf7 {[%clk 0:02:10.1]} 20. c4
{[%clk 0:01:52]} 20... Nbd3 {[%clk 0:02:09.8]} 21. Nd4 {[%clk 0:01:51.8]} 21...
f4 {[%clk 0:02:02.4]} 22. Bxe4 {[%clk 0:01:38.6]} 22... fxe3 {[%clk 0:01:49.7]}
23. fxe3 {[%clk 0:01:36.4]} 23... Qxf1+ {[%clk 0:01:38.6]} 24. Qxf1 {[%clk
0:01:31.4]} 24... Rxf1+ {[%clk 0:01:39.5]} 25. Rxf1 {[%clk 0:01:28.4]} 25... Nc5
{[%clk 0:01:39.4]} 26. Bf5 {[%clk 0:01:25.7]} 26... Bf6 {[%clk 0:01:22.4]} 27.
Be6+ {[%clk 0:01:23.8]} 27... Kg7 {[%clk 0:01:21.2]} 28. Nf5+ {[%clk 0:01:23.6]}
28... Kg6 {[%clk 0:01:21.6]} 29. Nd4 {[%clk 0:01:19.9]} 29... Bg5 {[%clk
0:01:06.5]} 30. Bf5+ {[%clk 0:01:06.4]} 30... Kh6 {[%clk 0:01:05.3]} 31. Kg2
{[%clk 0:01:01.7]} 31... Bxe3 {[%clk 0:01:03.8]} 32. Nb5 {[%clk 0:01:01.8]}
32... Re7 {[%clk 0:01:00.9]} 33. Bc2 {[%clk 0:01:01.9]} 33... Kg7 {[%clk
0:00:59.6]} 34. Re1 {[%clk 0:00:56.2]} 34... Bg5 {[%clk 0:00:58.5]} 35. Nd4
{[%clk 0:00:55.9]} 35... Rf7 {[%clk 0:00:55.3]} 36. h4 {[%clk 0:00:56]} 36...
Bd2 {[%clk 0:00:54.5]} 37. Re2 {[%clk 0:00:54.6]} 37... Bc3 {[%clk 0:00:54.7]}
38. Nf5+ {[%clk 0:00:54.3]} 38... Kf8 {[%clk 0:00:55.3]} 39. Nh6 {[%clk
0:00:49.9]} 39... Rf6 {[%clk 0:00:54.5]} 40. Nf5 {[%clk 0:00:49]} 40... Nxb3
{[%clk 0:00:52.8]} 41. Re3 {[%clk 0:00:28.1]} 41... Nd4 {[%clk 0:00:52.3]} 42.
Rxc3 {[%clk 0:00:26.7]} 42... Nxf5 {[%clk 0:00:52.5]} 43. c5 {[%clk 0:00:24.8]}
43... dxc5 {[%clk 0:00:50.6]} 44. Rxc5 {[%clk 0:00:24.9]} 44... Ne3+ {[%clk
0:00:50.2]} 45. Kh3 {[%clk 0:00:25.2]} 45... Rf2 {[%clk 0:00:48.1]} 46. Bxh7
{[%clk 0:00:22.6]} 46... N5g4 {[%clk 0:00:48.2]} 0-1